{"text_format":"3","workbook":"xlsx","n_sheets":1,"sheets":["Лист1"],"read":"whole","date_system":"1900"}

{"sheet":"Лист1","index":0,"n_rows":115,"n_cols":24,"rows_kept":115,"merged":[[0,0,4,0],[0,1,4,1],[0,2,0,5],[0,6,0,9],[0,16,0,19],[1,2,1,5],[1,6,1,9],[1,16,1,19],[2,2,2,5],[2,6,2,9],[2,16,2,19],[2,20,2,21],[3,2,3,5],[3,6,3,9],[3,16,3,19],[3,20,3,21],[4,19,4,21],[5,0,5,1],[5,19,5,21],[6,0,9,0],[10,0,14,0],[12,1,14,1],[12,2,14,2],[12,3,14,3],[12,4,14,4],[12,6,14,6],[12,7,14,7],[12,8,14,8],[12,16,14,16],[12,17,14,17],[12,18,14,18],[12,22,14,22],[12,23,14,23],[15,0,18,0],[17,1,18,1],[17,2,18,2],[17,3,18,3],[17,4,18,4],[17,6,18,6],[17,7,18,7],[17,8,18,8],[17,16,18,16],[17,17,18,17],[17,18,18,18],[17,22,18,22],[17,23,18,23],[19,0,19,1],[20,0,21,0],[21,14,21,15],[22,0,27,0],[28,0,32,0],[33,0,36,0],[37,0,37,1],[38,0,40,0],[41,0,43,0],[44,0,46,0],[47,0,48,0],[49,0,52,0],[53,0,53,1],[54,0,56,0],[57,0,62,0],[63,0,65,0],[66,0,66,1],[67,0,72,0],[73,0,77,0],[78,0,81,0],[82,0,84,0],[85,0,85,1],[86,0,89,0],[90,0,93,0],[90,14,90,15],[94,0,97,0],[98,0,102,0],[103,0,107,0]]}
["Наименование компетенции","Лабораторный химический анализ","Модуль А Фотометрический метод анализа\n",{"$nulls":3},"Модуль  Б Титриметрический метод анализа",{"$nulls":9},"Модуль 3 Потенциометрический метод анализа"]
[null,null,"Инвариант\n",{"$nulls":3},"Инвариант",{"$nulls":9},"вариатив"]
[null,null," Единый тарифно-квалификационный справочник работ и профессий рабочих \n",{"$nulls":3}," Единый тарифно-квалификационный справочник работ и профессий рабочих \n",{"$nulls":9}," Единый тарифно-квалификационный справочник работ и профессий рабочих "]
[null,null,"ОТФ 1 Проведение текущих анализов по контролю качества продукции, сырья и промежуточных продуктов",{"$nulls":3},"ОТФ 1 Проведение текущих анализов по контролю качества продукции, сырья и промежуточных продуктов",{"$nulls":9},"ОТФ 1 Проведение текущих анализов по контролю качества продукции, сырья и промежуточных продуктов"]
[null,null,"ТФ 1 Подготавливать реагенты, материалы и растворы, необходимые для анализа\n","ТФ 2\nРаботать с химическими веществами и оборудованием с соблюдением отраслевых норм и экологической безопасности","ТФ 3 Проводить качественный и колическтвенный анализ химпическими и физико-химическими методами","ТФ 4 Проводить метрологическую обработку результатов анализа ","ТФ 1 Подготавливать реагенты, материалы и растворы, необходимые для анализа\n","ТФ 2\nРаботать с химическими веществами и оборудованием с соблюдением отраслевых норм и экологической безопасности","ТФ 3 Проводить качественный и колическтвенный анализ химпическими и физико-химическими методами","ТФ 4 Проводить метрологическую обработку результатов анализа ",{"$nulls":6},"Проведение текущих анализов по контролю качества продукции, сырья и промежуточных продуктов","ТФ 2\nРаботать с химическими веществами и оборудованием с соблюдением отраслевых норм и экологической безопасности","ТФ 3 Проводить качественный и колическтвенный анализ химпическими и физико-химическими методами","ТФ 4 Проводить метрологическую обработку результатов анализа ",{"$nulls":3},"% ПК, не учтенных в содержании модулей компетенции от общего количества ПК во ФГОС"]
["ФГОС СПО 1 18.02.12 Технология аналитического контроля химических соединений\n(наименование, реквизиты)"]
["Вид деятельности 1 Определение оптимальных средств и методов анализа природных и промышленных","ПК 1.1. Оценивать соответствие методики задачам анализа по диапазону измеряемых значений и точности","учтена","учтена","учтена","учтена","учтена","учтена","учтена","учтена","учтено","учтено","учтено","учтено","учтено","учтено","учтена","учтена","учтена","учтена","учтено","учтено",{"$f":"COUNTIF(C7:V7,\"учтена\")","v":12}]
[null,"ПК 1.2. Выбирать оптимальные методы анализа","учтена","учтена","учтена","учтена","учтена","учтена","учтена","учтена","учтено","учтено","учтено","учтено","учтено","учтено","учтена","учтена","учтена","учтена","учтено","учтено",12]
[null,"ПК 1.3. Подготавливать реагенты, материалы и растворы, необходимые для анализа","учтена","учтена","учтена","учтена","учтена","учтена","учтена","учтена","учтено","учтено","учтено","учтено","учтено","учтено","учтена","учтена","учтена","учтена","учтено","учтено",12]
[null,"ПК 1.4 Работать с химическими веществами и оборудованием с соблюдением отраслевых норм и экологической безопасности","учтена","учтена","учтена","учтена","учтена","учтена","учтена","учтена","учтено","учтено","учтено","учтено","учтено","учтено","учтена","учтена","учтена","учтена","учтено","учтено",12]
["Вид деятельности 2  Проведение качественных и количественных анализов природных и промышленных\n","ПК 2.1. Обслуживать и эксплуатировать лабораторное оборудование, испытательное оборудование и средства измерения химико-аналитических лабораторий","учтена","учтена","учтена","учтена","учтена","учтена","учтена","учтена","учтено","учтено","учтено","учтено","учтено","учтено","учтена","учтена","учтена","учтена","учтено","учтено",12]
[null,"ПК 2.2. Проводить качественный и количественный анализ неорганических и органических веществ химическими и физико-химическими методами","учтена","учтена","учтена","учтена","учтена","учтена","учтена","учтена","учтено","учтено","учтено","учтено","учтено","учтено","учтена","учтена","учтена","учтена","учтено","учтено",12]
[null,"ПК 2.3. Проводить метрологическую обработку результатов анализов","учтена","учтена","учтена","учтена","учтена","учтена","учтена","учтена","учтено","учтено","учтено","учтено","учтено","учтено","учтена","учтена","учтена","учтена","учтено","учтено",12]
[{"$nulls":20},"учтено","учтено"]
[{"$nulls":20},"учтено","учтено"]
["Вид деятельности 3. Организация лабораторно-производственной деятельности\n","ПК 3.1. Планировать и организовывать работу в соответствии со стандартами предприятия, международными стандартами и другим требованиями","учтена","учтена","учтена","учтена","учтена","учтена","учтена","учтена","учтено","учтено","учтено","учтено","учтено","учтено","учтена","учтена","учтена","учтена","учтено","учтено",{"$f":"COUNTIF(C16:V16,\"учтена\")","v":12}]
[null,"ПК 3.2. Организовывать безопасные условия процессов и производства","учтена","учтена","учтена","учтена","учтена","учтена","учтена","учтена","учтено","учтено","учтено","учтено","учтено","учтено","учтена","учтена","учтена","учтена","учтено","учтено",{"$f":"COUNTIF(C17:V17,\"учтена\")","v":12}]
[null,"ПК 3.3. Анализировать производственную деятельность лаборатории и оценивать экономическую эффективность работы","учтена","учтена","учтена","учтена","учтена","учтена","учтена","учтена",{"$nulls":6},"учтена","учтена","учтена","учтена","учтено","учтено",{"$f":"COUNTIF(C18:V18,\"учтена\")","v":12},{"$f":"(COUNTIF(W7:W19, \"0\")*100)/COUNTA(W7:W19)","v":{"v":0,"d":"0.00"}}]
[{"$nulls":10},"учтено","учтено","учтено","учтено","учтено","учтено",{"$nulls":4},"учтено","учтено"]
["ФГОС СПО 2 19.02.01 Биохимическое производство\n"]
["Вид деятельности 1 Обслуживание и эксплуатация технологического оборудования","ПК 1.1. Проводить санитарную обработку оборудования в соответствии с требованиями нормативной документации",{"$nulls":20},{"$f":"COUNTIF(C21:V21,\"учтена\")","v":0}]
[null,"ПК 1.2. Контролировать работу основного и вспомогательного оборудований, технологических линий, контрольно-измерительных приборов и средств автоматизации","учтена","учтена","учтена","учтена","учтена","учтена","учтена","учтена","учтено",null,"учтено",null,"учтено",null,"учтена","учтена","учтена","учтена","учтено","учтено",12]
["Вид деятельности 2 Ведение технологического процесса биохимического производства\n","ПК 2.1. Подготавливать сырье и полупродукты","учтена","учтена","учтена","учтена","учтена","учтена","учтена","учтена","учтено","учтено","учтено","учтено","учтено","учтено","учтена","учтена","учтена","учтена","учтено","учтено",12]
[null,"ПК 2.2. Контролировать и регулировать параметры технологического процесса",{"$nulls":20},0]
[null,"ПК 2.3. Работать с химическими объектами, соблюдая правила охраны труда, техники безопасности, пожарной безопасности, промсанитарии","учтена","учтена","учтена","учтена","учтена","учтена","учтена","учтена","учтено","учтено","учтено","учтено","учтено","учтено","учтена","учтена","учтена","учтена","учтено","учтено",12]
[null,"ПК 2.4. Рассчитывать технические показатели технологического процесса",{"$nulls":20},0]
[null,"ПК 2.5. Осуществлять контроль качества продукции","учтена","учтена","учтена","учтена","учтена","учтена","учтена","учтена","учтено","учтено","учтено","учтено","учтено","учтено","учтена","учтена","учтена","учтена","учтено","учтено",12]
[null,"ПК 2.6. Анализировать причины нарушений параметров технологического процесса, брака продукции и разрабатывать мероприятия по их предупреждению, ликвидации",{"$nulls":20},0]
["Вид деятельности 3  Планирование и организация работы персонала подразделения\n","ПК 3.1. Организовывать работу коллектива подразделения, обеспечивать связи со смежными подразделениями",{"$nulls":20},0]
[null,"ПК 3.2. Осуществлять руководство персоналом подразделения в соответствии с действующими нормативными правовыми актами",{"$nulls":20},0]
[null,"ПК 3.3. Контролировать расход сырья и материалов",{"$nulls":20},0]
[null,"ПК 3.4. Проверять состояние охраны труда и промышленной безопасности на рабочих местах",{"$nulls":20},0]
[null,"ПК 3.5. Организовывать обучение безопасным методам труда, правилам технической эксплуатации оборудования",{"$nulls":20},0]
["Вид деятельности 4. Участие в экспериментально-исследовательской работе","ПК 4.1. Участвовать в испытании и отработке новых технологических режимов",{"$nulls":20},0]
[null,"ПК 4.2. Участвовать в разработке и получении опытных образцов продукции",{"$nulls":20},0]
[null,"ПК 4.3. Использовать аппаратно-программные средства обработки результатов исследований и испытаний",{"$nulls":20},0]
[null,"ПК 4.4. Анализировать результаты исследований и испытаний","учтена","учтена","учтена","учтена","учтена","учтена","учтена","учтена","учтено","учтено","учтено","учтено","учтено","учтено","учтена","учтена","учтена","учтена","учтено","учтено",12,{"$f":"COUNTIF(W21:W37,\"0\")*100/COUNTA(W21:W37)","v":{"v":70.58823529411765,"d":"70.59"}}]
["ФГОС СПО 3  148.02.09 Переработка нефти и газа"]
["Вид деятельности 1. Эксплуатация технологического оборудования и коммуникаций","ПК 1.1. Контролировать эффективность работы оборудования",{"$nulls":20},{"$f":"COUNTIF(C39:V39,\"учтена\")","v":0}]
[null,"ПК 1.2. Обеспечивать безопасную эксплуатацию оборудования и коммуникаций при ведении технологического процесса",{"$nulls":20},0]
[null,"ПК 1.3. Подготавливать оборудование к проведению ремонтных работ различного характера",{"$nulls":20},0]
["Вид деятельности 2. Ведение технологического процесса на установках I и II категорий","ПК 2.1. Контролировать и регулировать технологический режим с использованием средств автоматизации и результатов анализов ",{"$nulls":20},0]
[null,"ПК 2.2. Контролировать качество сырья, получаемых продуктов","учтена","учтена","учтена","учтена","учтена","учтена","учтена","учтена","учтено","учтено","учтено","учтено","учтено","учтено","учтена","учтена","учтена","учтена","учтено","учтено",12]
[null,"ПК 2.3. Контролировать расход сырья, продукции, реагентов, катализаторов, топливно-энергетических ресурсов","учтена","учтена","учтена","учтена","учтена","учтена","учтена","учтена","учтено","учтено","учтено","учтено","учтено","учтено","учтена","учтена","учтена","учтена","учтено","учтено",12]
["Вид деятельности 3. Оценка качества выпускаемых компонентов и товарной продукции объектов\nпереработки нефти и газа","ПК 3.1. Определять показатели качества выпускаемой продукции",{"$nulls":20},0]
[null,"ПК 3.2. Оценивать качество выпускаемых компонентов и товарной продукции",{"$nulls":20},0]
[null,"ПК 3.3. Анализировать причины брака и выпуска некондиционной продукции",{"$nulls":20},0]
["Вид деятельности 4. Предупреждение и устранение возникающих производственных инцидентов","ПК 4.2. Анализировать причины отклонения от режима технологического процесса и принимать меры по их устранению",{"$nulls":20},0]
[null,"ПК 4.3. Разрабатывать меры по предупреждению инцидентов на технологическом блоке ",{"$nulls":20},0]
["Вид деятельности 5. Планирование и организация работы коллектива подразделения","ПК 5.1. Организовывать работу коллектива и поддерживать профессиональные отношения\nсо смежными подразделениями",{"$nulls":20},0]
[null,"ПК 5.2. Обеспечивать выполнение производственного задания по объему производства и качеству продукта",{"$nulls":20},0]
[null,"ПК 5.3. Обеспечивать соблюдение правил охраны труда, промышленной, пожарной и экологической безопасности",{"$nulls":20},0]
[null,"ПК 5.4. Составлять и оформлять технологическую документацию",{"$nulls":20},0,{"$f":"COUNTIF(W39:W53,\"0\")*100/COUNTA(W39:W53)","v":{"v":86.66666666666667,"d":"86.67"}}]
["ФГОС СПО 4 18.01.34 Лаборант по контролю качества сырья, реактивов, промежуточных продуктов, готовой продукции, отходов производства"]
["Вид деятельности 1. Подготовка условий для проведения химического анализа ","ПК 1.1. Организовывать рабочее место, эксплуатацию лабораторных установок и оборудования, хранение реактивов в соответствии с нормативными документами и требованиями охраны труда","учтена","учтена","учтена","учтена","учтена","учтена","учтена","учтена","учтено","учтено","учтено","учтено","учтено","учтено","учтена","учтена","учтена","учтена","учтено","учтено",{"$f":"COUNTIF(C55:V55,\"учтена\")","v":12}]
[null,"ПК 1.2. Подготавливать пробы, рабочие и вспомогательные растворы различных концентраций","учтена","учтена","учтена","учтена","учтена","учтена","учтена","учтена","учтено","учтено","учтено","учтено","учтено","учтено","учтена","учтена","учтена","учтена","учтено","учтено",12]
[null,"ПК 1.3. Вести лабораторные журналы и карты в соответствии с действующей нормативной документацией, требованиями охраны и экологической безопасности","учтена","учтена","учтена","учтена","учтена","учтена","учтена","учтена","учтено","учтено","учтено","учтено","учтено","учтено","учтена","учтена","учтена","учтена","учтено","учтено",12]
["Вид деятельности 2. Лабораторный контроль качества и безопасности сырья, полуфабрикатов и готовой продукции для\nхимических отраслей (по\nвыбору)","ПК 2.1. Проводить отбор проб для проведения лабораторных исследований качества и безопасности сырья, полуфабрикатов и готовой продукции в соответствии с техническими регламентами (в\nзависимости от отрасли)","учтена","учтена","учтена","учтена","учтена","учтена","учтена","учтена","учтено","учтено","учтено","учтено","учтено","учтено","учтена","учтена","учтена","учтена","учтено","учтено",12]
[null,"ПК 2.2. Проводить химический анализ состава и параметров сырья, полуфабрикатов и готовой продукции в соответствии со стандартными (аттестованными) методиками, требованиями нормативно-технической документации, требованиями охраны труда и экологической безопасности в соответствии с действующей нормативной документацией ","учтена","учтена","учтена","учтена","учтена","учтена","учтена","учтена","учтено","учтено","учтено","учтено","учтено","учтено","учтена","учтена","учтена","учтена","учтено","учтено",12]
[null,"ПК 2.3. Проводить физико-химический анализ состава и параметров сырья, полуфабрикатов и готовой продукции в соответствии со стандартными (аттестованными) методиками, требованиями нормативно-технической документации, требованиями охраны труда и экологической безопасности в соответствии с действующей нормативной документацией ","учтена","учтена","учтена","учтена","учтена","учтена","учтена","учтена","учтено","учтено","учтено","учтено","учтено","учтено","учтена","учтена","учтена","учтена","учтено","учтено",12]
[null,"ПК 2.4. Проводить электрохимический анализ состава и параметров сырья, полуфабрикатов и готовой продукции в соответствии со стандартными (аттестованными) методиками,, требованиями нормативно-технической документации, требованиями охраны труда и экологической безопасности в соответствии с действующей нормативной документацией ","учтена","учтена","учтена","учтена","учтена","учтена","учтена","учтена","учтено","учтено","учтено","учтено","учтено","учтено","учтена","учтена","учтена","учтена","учтено","учтено",12]
[null,"ПК 2.5. Проводить обработку, расчет, оценку и регистрацию результатов исследований состава и параметров сырья, полуфабрикатов и готовой продукции ","учтена","учтена","учтена","учтена","учтена","учтена","учтена","учтена","учтено","учтено","учтено","учтено","учтено","учтено","учтена","учтена","учтена","учтена","учтено","учтено",12]
[null,"ПК 2.6. Оформлять результаты испытаний (анализов) с математической обработкой и метрологической оценкой ","учтена","учтена","учтена","учтена","учтена","учтена","учтена","учтена","учтено","учтено","учтено","учтено","учтено","учтено","учтена","учтена","учтена","учтена","учтено","учтено",12]
["Вид деятельности 4. Осуществление экологического контроля природных объектов, производства и технологического процесса (по выбору) ","ПК 2.1. Оценивать экологические показатели природных объектов, сырья и экологическую пригодность выпускаемой продукции","учтена","учтена","учтена","учтена","учтена","учтена","учтена","учтена","учтено","учтено","учтено","учтено","учтено","учтено","учтена","учтена","учтена","учтена","учтено","учтено",12]
[null,"ПК 2.2. Вести учет сточных вод и стационарных источников сбросов загрязняющих веществ в водные объекты",{"$nulls":20},0]
[null,"ПК 2.3. Подготавливать документированную информацию для составления отчета о результатах осуществления производственного экологического контроля в организации","учтена","учтена","учтена","учтена","учтена","учтена","учтена","учтена","учтено","учтено","учтено","учтено","учтено","учтено","учтена","учтена","учтена","учтена","учтено","учтено",12,{"$f":"COUNTIF(W55:W66,\"0\")*100/COUNTA(W55:W66)","v":{"v":8.333333333333334,"d":"8.33"}}]
["ФГОС СПО 5 18.02.04 Электрохимическое производство"]
["Вид деятельности 1. Эксплуатация обслуживаемого технологического оборудования ","ПК 1.1. Подготавливать к работе технологическое оборудование, инструменты, оснастку",{"$nulls":20},{"$f":"COUNTIF(C68:V68,\"учтена\")","v":0}]
[null,"ПК 1.2. Контролировать бесперебойную работу оборудования, технологических линий, коммуникаций",{"$nulls":20},0]
[null,"ПК 1.3. Поддерживать бесперебойную работу оборудования, технологических линий, коммуникаций",{"$nulls":20},0]
[null,"ПК 1.4. Эксплуатировать оборудование при ведении технологического процесса с соблюдением правил техники безопасности",{"$nulls":20},0]
[null,"ПК 1.5. Подготавливать оборудование к проведению ремонтных работ различного характера",{"$nulls":20},0]
[null,"ПК 1.6. Принимать оборудование из ремонта",{"$nulls":20},0]
["Вид деятельности 2. Ведение технологического процесса с автоматическим регулированием параметров и режимов","ПК 2.1. Получать продукты электрохимического производства заданного количества и качества",{"$nulls":20},0]
[null,"ПК 2.2. Контролировать параметры технологических процессов с помощью контрольно-измерительных приборов и результатов аналитического контроля",{"$nulls":20},0]
[null,"ПК 2.3. Регулировать параметры технологических процессов",{"$nulls":20},0]
[null,"ПК 2.4. Выполнять требования производственной безопасности",{"$nulls":20},0]
[null,"ПК 2.5. Рассчитывать технико-экономические показатели технологического процесса",{"$nulls":20},0]
["Вид деятельности 3. Контроль ресурсов и качества продукции ","ПК 3.1. Вести учет расхода используемых сырья, вспомогательных материалов, энергоресурсов",{"$nulls":20},0]
[null,"ПК 3.2. Контролировать качество сырья, полуфабрикатов (полупродуктов) и готовой продукции на всех участках электрохимического производства","учтена","учтена","учтена","учтена","учтена","учтена","учтена","учтена","учтено","учтено","учтено","учтено","учтено","учтено","учтена","учтена","учтена","учтена","учтено","учтено",12]
[null,"ПК 3.3. Выявлять причины возникновения технологического брака продукции",{"$nulls":20},0]
[null,"ПК 3.4. Вносить предложения для разработки мероприятий по предупреждению технологического брака продукции",{"$nulls":20},0]
["Вид деятельности 4. Планирование и организация работы коллектива производственного подразделения ","ПК 4.1. Планировать деятельность персонала по выполнению производственных заданий",{"$nulls":20},0]
[null,"ПК 4.2. Организовывать обучение безопасным методам труда, правилам технической эксплуатации оборудования, техники безопасности",{"$nulls":20},0]
[null,"ПК 4.3. Контролировать выполнение правил техники безопасности, производственной и трудовой дисциплины, требований охраны труда промышленной и экологической безопасности",{"$nulls":20},0,{"$f":"COUNTIF(W68:W85,\"0\")*100/COUNTA(W68:W85)","v":{"v":94.44444444444444,"d":"94.44"}}]
["ФГОС СПО 6 18.02.14 Химическая технология производства химических соединений"]
["Вид деятельности 1. Обслуживание и эксплуатация технологического оборудования производств химических веществ","ПК 1.1. Подготавливать к работе технологическое оборудование, инструменты, оснастку",{"$nulls":20},{"$f":"COUNTIF(C87:V87,\"учтена\")","v":0}]
[null,"ПК 1.2. Поддерживать бесперебойную работу оборудования, технологических линий, коммуникаций",{"$nulls":20},0]
[null,"ПК 1.3. Эксплуатировать оборудование при ведении технологического процесса с соблюдением правил техники безопасности",{"$nulls":20},0]
[null,"ПК 1.4. Подготавливать оборудование к проведению ремонтных работ различного характера и принимать оборудование из ремонта",{"$nulls":20},0]
["Вид деятельности 2. Контроль качества сырья, материалов и готовой продукции при производстве химических веществ","ПК 2.1. Вести учет расхода используемых сырья, вспомогательных материалов, энергоресурсов","учтена","учтена","учтена","учтена","учтена","учтена","учтена","учтена","учтено",null,"учтено",null,"учтено",null,"учтена","учтена","учтена","учтена","учтено","учтено",12]
[null,"ПК 2.2. Контролировать качество сырья, полуфабрикатов (полупродуктов) и готовой продукции на всех участках производства химических веществ","учтена","учтена","учтена","учтена","учтена","учтена","учтена","учтена","учтено","учтено","учтено","учтено","учтено","учтено","учтена","учтена","учтена","учтена","учтено","учтено",12]
[null,"ПК 2.3. Выявлять и анализировать причины возникновения технологического брака продукции",{"$nulls":20},0]
[null,"ПК 2.4. Разрабатывать предложения и организовывать проведение мероприятий по предупреждению технологического брака продукции",{"$nulls":20},0]
["Вид деятельности 3. Планирование и организация работы коллектива производственного подразделения","ПК 3.1. Осуществлять планирование и координацию деятельности персонала по выполнению производственных заданий",{"$nulls":20},0]
[null,"ПК 3.2. Организовывать своевременность проведения обучения безопасным методам труда, правилам технической эксплуатации оборудования, техники безопасности",{"$nulls":20},0]
[null,"ПК 3.3. Контролировать выполнение правил техники безопасности, производственной и трудовой дисциплины, требований охраны труда промышленной и экологической безопасности",{"$nulls":20},0]
[null,"ПК 3.4. Оценивать экономическую эффективность работы подразделения",{"$nulls":20},0]
["Вид деятельности 4. Ведение технологических процессов производства органических веществ (по выбору)","ПК 4.1. Получать продукты производства органических веществ заданного количества и качества",{"$nulls":20},0]
[null,"ПК 4.2. Регулировать параметры технологических процессов в соответствии с технологической картой",{"$nulls":20},0]
[null,"ПК 4.3. Выполнять требования охраны труда и безопасности на производстве","учтена","учтена","учтена","учтена","учтена","учтена","учтена","учтена","учтено","учтено","учтено","учтено","учтено","учтено","учтена","учтена","учтена","учтена","учтено","учтено",12]
[null,"ПК. 4.4. Рассчитывать технико-экономические показатели технологического процесса производства органических веществ",{"$nulls":20},0]
[null,"ПК 4.5. Осуществлять плановую и аварийную остановку оборудования на основе нормативных правовых актов о порядке плановой и аварийной остановки оборудования",{"$nulls":20},0]
["Вид деятельности 4. Ведение технологических процессов производства неорганических веществ (по выбору)","ПК 4.1. Получать продукты производства неорганических веществ заданного количества и качества",{"$nulls":20},0]
[null,"ПК 4.2. Регулировать параметры технологических процессов в соответствии с технологической картой",{"$nulls":20},0]
[null,"ПК 4.3. Выполнять требования охраны труда и безопасности на производстве",{"$nulls":20},0]
[null,"ПК 4.4. Рассчитывать технико-экономические показатели технологического процесса производства неорганических веществ",{"$nulls":20},0]
[null,"ПК 4.5. Осуществлять плановую и аварийную остановку оборудования на основе нормативных правовых актов о порядке плановой и аварийной остановки оборудования",{"$nulls":20},0,{"$f":"(COUNTIF(W87:W108, \"0\")*100)/COUNTA(W87:W108)","v":{"v":86.36363636363636,"d":"86.36"}}]
[null,null,{"$f":"COUNTIF(C7:C108,\"учтена\")","v":32},{"$f":"COUNTIF(D7:D108,\"учтена\")","v":32},32,{"$f":"COUNTIF(F7:F108,\"учтена\")","v":32},{"$f":"COUNTIF(G7:G108,\"учтена\")","v":32},{"$f":"COUNTIF(H7:H108,\"учтена\")","v":32},{"$f":"COUNTIF(I7:I108,\"учтена\")","v":32},{"$f":"COUNTIF(J7:J108,\"учтена\")","v":32},{"$nulls":5},{"$f":"COUNTIF(P6:P32,\"учтена\")","v":0},{"$f":"COUNTIF(Q7:Q108,\"учтена\")","v":32},{"$f":"COUNTIF(R7:R108,\"учтена\")","v":32},{"$f":"COUNTIF(S7:S108,\"учтена\")","v":32},{"$f":"COUNTIF(T7:T108,\"учтена\")","v":32},{"$f":"COUNTIF(U6:U32,\"учтена\")","v":0},{"$f":"COUNTIF(V6:V32,\"учтена\")","v":0}]
[null,"% ТФ, учтенных во ФГОС СПО, от общего количества ТФ модуля компетенции",{"$nulls":3},{"$f":"(COUNTIF(C109:F109, \"> 0\")*100)/COLUMNS(C109:F109)","v":{"v":100,"d":"100.0"}},{"$nulls":3},{"$f":"(COUNTIF(G109:J109,\">0\")*100)/(COLUMNS(G109:J109))","v":{"v":100,"d":"100.0"}},{"$nulls":9},{"$f":"(COUNTIF(Q109:T109,\">0\")*100)/(COLUMNS(Q109:T109))","v":{"v":100,"d":"100.0"}},null,{"$f":"(COUNTIF(P109:V109, \"> 0\")*100)/COLUMNS(P32:V32)","v":{"v":57.142857142857146,"d":"57.1"}}]
[]
["Вывод:","В части основных модулей компетенции","В части вариативных модулей компетенции"]
["1. Содержание всех модулей соответствует \nФГОС СПО","Выбрать один из вариантов:\n1. Соответствует\n(% ТФ модуля, учтенных во ФГОС СПО > 70%);\n2. Частично соответствует\n(% ТФ модуля, учтенных во ФГОС СПО 40...70%);\n3. Не соответствует\n(% ТФ модуля, учтенных во ФГОС СПО < 40%).","Выбрать один из вариантов:\n1. Соответствует\n(% ТФ модуля, учтенных во ФГОС СПО > 70%);\n2. Частично соответствует\n(% ТФ модуля, учтенных во ФГОС СПО 40...70%);\n3. Не соответствует\n(% ТФ модуля, учтенных во ФГОС СПО < 40%)."]
["2. Перечень модулей компетенции, содержание которых не соответствует ФГОС СПО","указать наименования модулей (при необходимости)","указать наименования модулей (при необходимости)"]
["3. Предложения по учету содержания модулей компетенции (п.2) в образовательных программах по профессиям/ специальностям СПО"]